[Event "Live Chess"]
[Site "Chess.com"]
[Date "2024.06.01"]
[Round "-"]
[White "MagnersCarlsberg2870"]
[Black "dhairyapandyauk"]
[Result "1-0"]
[WhiteElo "1798"]
[BlackElo "1655"]
[TimeControl "300"]
[EndTime "13:16:32 PDT"]
[Termination "MagnersCarlsberg2870 won by checkmate"]

1. d4 {[%clk 0:04:56]} 1... Nf6 {[%clk 0:04:57.9]} 2. Nf3 {[%clk 0:04:54.9]}
2... d5 {[%clk 0:04:56.3]} 3. e3 {[%clk 0:04:53.9]} 3... e6 {[%clk 0:04:52.3]}
4. Bd3 {[%clk 0:04:53.1]} 4... Bd6 {[%clk 0:04:50.8]} 5. Nbd2 {[%clk 0:04:52.1]}
5... Nbd7 {[%clk 0:04:49.1]} 6. Qe2 {[%clk 0:04:51.3]} 6... Qe7 {[%clk
0:04:47.9]} 7. O-O {[%clk 0:04:50.1]} 7... O-O {[%clk 0:04:46.7]} 8. e4 {[%clk
0:04:49.2]} 8... e5 {[%clk 0:04:39.7]} 9. exd5 {[%clk 0:04:45.3]} 9... Nxd5
{[%clk 0:04:34.5]} 10. Bxh7+ {[%clk 0:04:43.9]} 10... Kxh7 {[%clk 0:04:29.8]}
11. Qe4+ {[%clk 0:04:42.9]} 11... f5 {[%clk 0:04:24.4]} 12. Qxd5 {[%clk
0:04:41.5]} 12... e4 {[%clk 0:04:21.1]} 13. Re1 {[%clk 0:04:34.6]} 13... Nb6
{[%clk 0:04:03.3]} 14. Qb3 {[%clk 0:04:27.3]} 14... Qf6 {[%clk 0:04:01.9]} 15.
Nc4 {[%clk 0:04:23]} 15... exf3 {[%clk 0:03:59.2]} 16. Nxd6 {[%clk 0:04:08.8]}
16... Qxd6 {[%clk 0:03:54.9]} 17. Qxf3 {[%clk 0:04:05.1]} 17... Qxd4 {[%clk
0:03:50.8]} 18. Be3 {[%clk 0:03:58.8]} 18... Qf6 {[%clk 0:03:48.3]} 19. Rad1
{[%clk 0:03:53]} 19... Rb8 {[%clk 0:03:41.3]} 20. Bd4 {[%clk 0:03:51.4]} 20...
Qg6 {[%clk 0:03:32.9]} 21. Re7 {[%clk 0:03:47.8]} 21... Rf7 {[%clk 0:03:27.3]}
22. Qh3+ {[%clk 0:03:41.9]} 22... Kg8 {[%clk 0:03:25.2]} 23. Re8+ {[%clk
0:03:40.4]} 23... Rf8 {[%clk 0:03:24.4]} 24. Rxf8+ {[%clk 0:03:36.2]} 24... Kxf8
{[%clk 0:03:23.9]} 25. Qh8+ {[%clk 0:03:35.3]} 25... Ke7 {[%clk 0:03:23]} 26.
Re1+ {[%clk 0:03:33.7]} 26... Kf7 {[%clk 0:03:21.9]} 27. Qe8# {[%clk 0:03:30.7]}
1-0

[Event "Live Chess"]
[Site "Chess.com"]
[Date "2024.06.01"]
[Round "-"]
[White "Ksenia_2013"]
[Black "Isambard_Thomas"]
[Result "0-1"]
[WhiteElo "833"]
[BlackElo "2167"]
[TimeControl "300"]
[EndTime "13:17:24 PDT"]
[Termination "Isambard_Thomas won by resignation"]

1. e4 {[%clk 0:04:58.7]} 1... Nc6 {[%clk 0:04:58.8]} 2. Bc4 {[%clk 0:04:55.3]}
2... e5 {[%clk 0:04:57.2]} 3. Nf3 {[%clk 0:04:54.3]} 3... Nf6 {[%clk 0:04:56]}
4. Nc3 {[%clk 0:04:52.7]} 4... d6 {[%clk 0:04:53.1]} 5. O-O {[%clk 0:04:47.6]}
5... Be7 {[%clk 0:04:52.3]} 6. d3 {[%clk 0:04:45]} 6... Na5 {[%clk 0:04:51.4]}
7. b3 {[%clk 0:04:39.8]} 7... Nxc4 {[%clk 0:04:50.3]} 8. bxc4 {[%clk 0:04:38.3]}
8... Bg4 {[%clk 0:04:49.7]} 9. Bg5 {[%clk 0:04:35]} 9... O-O {[%clk 0:04:47.7]}
10. h3 {[%clk 0:04:30]} 10... Bh5 {[%clk 0:04:45]} 11. Nd5 {[%clk 0:04:22.7]}
11... Nxd5 {[%clk 0:04:39.8]} 12. Bxe7 {[%clk 0:04:21]} 12... Nxe7 {[%clk
0:04:37.2]} 13. g4 {[%clk 0:04:14.5]} 13... Bg6 {[%clk 0:04:35.9]} 14. Ng5
{[%clk 0:04:12.6]} 14... Qd7 {[%clk 0:04:29.5]} 15. Qf3 {[%clk 0:04:08.9]} 15...
f6 {[%clk 0:04:26.2]} 16. Nxh7 {[%clk 0:03:43.7]} 16... Bxh7 {[%clk 0:04:22.7]}
17. h4 {[%clk 0:03:40.4]} 17... c6 {[%clk 0:04:21.7]} 18. g5 {[%clk 0:03:39.4]}
18... fxg5 {[%clk 0:04:20.7]} 19. hxg5 {[%clk 0:03:38.4]} 19... Rxf3 {[%clk
0:04:19.3]} 0-1

[Event "Live Chess"]
[Site "Chess.com"]
[Date "2024.06.01"]
[Round "-"]
[White "peteopeteo"]
[Black "TJ-W"]
[Result "0-1"]
[WhiteElo "1584"]
[BlackElo "1571"]
[TimeControl "300"]
[EndTime "13:17:25 PDT"]
[Termination "TJ-W won by resignation"]

1. e4 {[%clk 0:04:59.5]} 1... c5 {[%clk 0:04:55.8]} 2. a3 {[%clk 0:04:58]} 2...
Nc6 {[%clk 0:04:53]} 3. b4 {[%clk 0:04:57.9]} 3... cxb4 {[%clk 0:04:51.1]} 4.
axb4 {[%clk 0:04:57.2]} 4... Nxb4 {[%clk 0:04:48]} 5. c3 {[%clk 0:04:57]} 5...
Nc6 {[%clk 0:04:44.3]} 6. d4 {[%clk 0:04:56.7]} 6... d5 {[%clk 0:04:43.7]} 7.
exd5 {[%clk 0:04:54.8]} 7... Qxd5 {[%clk 0:04:41.9]} 8. Nf3 {[%clk 0:04:48.9]}
8... e5 {[%clk 0:04:39.3]} 9. c4 {[%clk 0:04:36.6]} 9... Qe4+ {[%clk 0:04:31.2]}
10. Be2 {[%clk 0:04:28.6]} 10... Nxd4 {[%clk 0:04:28]} 11. Nxd4 {[%clk
0:04:27.8]} 11... Qxd4 {[%clk 0:04:25.3]} 12. Qxd4 {[%clk 0:04:22.3]} 12... exd4
{[%clk 0:04:25.2]} 13. O-O {[%clk 0:04:19.1]} 13... Nf6 {[%clk 0:04:22.3]} 14.
Re1 {[%clk 0:04:15]} 14... Be6 {[%clk 0:04:20.4]} 15. c5 {[%clk 0:04:12.9]}
15... Bxc5 {[%clk 0:04:13.6]} 16. Nd2 {[%clk 0:04:09.5]} 16... O-O {[%clk
0:04:11.5]} 17. Nf3 {[%clk 0:04:04.8]} 17... Rfe8 {[%clk 0:04:04.6]} 18. Bd3
{[%clk 0:04:03.9]} 18... h6 {[%clk 0:03:53.9]} 19. Bb2 {[%clk 0:04:02.1]} 19...
Rad8 {[%clk 0:03:47.8]} 20. Rac1 {[%clk 0:03:58.1]} 20... b6 {[%clk 0:03:44.1]}
21. Re5 {[%clk 0:03:51.5]} 21... Ng4 {[%clk 0:03:33.1]} 22. Re4 {[%clk
0:03:40.1]} 22... Nf6 {[%clk 0:03:29.3]} 23. Rf4 {[%clk 0:03:34.2]} 23... Re7
{[%clk 0:03:00.5]} 24. Ne5 {[%clk 0:03:22.5]} 24... Bd7 {[%clk 0:02:38.6]} 25.
Ra1 {[%clk 0:02:04.5]} 25... Rxe5 {[%clk 0:02:31.5]} 26. Rxa7 {[%clk 0:01:58.6]}
26... Re1+ {[%clk 0:02:23.8]} 27. Bf1 {[%clk 0:01:57.5]} 27... Bb5 {[%clk
0:02:22.5]} 0-1

[Event "Live Chess"]
[Site "Chess.com"]
[Date "2024.06.01"]
[Round "-"]
[White "nitrofish07"]
[Black "StoreySniper"]
[Result "0-1"]
[WhiteElo "2102"]
[BlackElo "2537"]
[TimeControl "300"]
[EndTime "13:17:26 PDT"]
[Termination "StoreySniper won by resignation"]

1. e4 {[%clk 0:04:58.8]} 1... g6 {[%clk 0:04:59.1]} 2. d4 {[%clk 0:04:57.5]}
2... Bg7 {[%clk 0:04:58.7]} 3. c3 {[%clk 0:04:57]} 3... d5 {[%clk 0:04:57.5]} 4.
e5 {[%clk 0:04:55.6]} 4... c5 {[%clk 0:04:56.8]} 5. Be3 {[%clk 0:04:54.1]} 5...
Nc6 {[%clk 0:04:56]} 6. Nf3 {[%clk 0:04:51.2]} 6... Nh6 {[%clk 0:04:55.1]} 7. h3
{[%clk 0:04:48.1]} 7... Nf5 {[%clk 0:04:54.3]} 8. g4 {[%clk 0:04:44]} 8... Nxe3
{[%clk 0:04:53.3]} 9. fxe3 {[%clk 0:04:43.9]} 9... Qb6 {[%clk 0:04:46.7]} 10.
Qc2 {[%clk 0:04:35.6]} 10... h5 {[%clk 0:04:42.9]} 11. g5 {[%clk 0:04:06.1]}
11... Bf5 {[%clk 0:04:35.3]} 12. Qc1 {[%clk 0:04:04.5]} 12... cxd4 {[%clk
0:04:25.5]} 13. exd4 {[%clk 0:04:03.5]} 13... Rc8 {[%clk 0:04:22.2]} 14. Qd2
{[%clk 0:03:26.6]} 14... O-O {[%clk 0:04:16]} 15. Bg2 {[%clk 0:03:25.2]} 15...
Be4 {[%clk 0:04:13.8]} 16. Na3 {[%clk 0:03:19.2]} 16... f6 {[%clk 0:04:05.4]}
17. exf6 {[%clk 0:03:18.3]} 17... exf6 {[%clk 0:04:04.1]} 18. O-O {[%clk
0:03:12.9]} 18... f5 {[%clk 0:03:38.4]} 19. Rae1 {[%clk 0:03:09.9]} 19... Rce8
{[%clk 0:03:36.6]} 20. b4 {[%clk 0:02:53.8]} 20... Re7 {[%clk 0:03:27.2]} 21.
Nc2 {[%clk 0:02:49.4]} 21... Rc8 {[%clk 0:03:14]} 22. Ne3 {[%clk 0:02:42.4]}
22... Rec7 {[%clk 0:03:06.5]} 23. Rc1 {[%clk 0:02:38.3]} 23... Ne7 {[%clk
0:03:04.9]} 24. Ne5 {[%clk 0:02:22.3]} 24... Bxe5 {[%clk 0:03:00.1]} 25. dxe5
{[%clk 0:02:22.2]} 25... f4 {[%clk 0:02:15.6]} 26. Rxf4 {[%clk 0:02:16.9]} 26...
Nf5 {[%clk 0:02:14.6]} 27. Bxe4 {[%clk 0:02:04.3]} 27... Nxe3 {[%clk 0:02:12]}
28. Kh1 {[%clk 0:01:28.2]} 28... dxe4 {[%clk 0:02:07.1]} 29. Rf6 {[%clk
0:01:27.4]} 29... Rc6 {[%clk 0:01:59.7]} 30. e6 {[%clk 0:01:26.9]} 30... Rxe6
{[%clk 0:01:52.8]} 31. Rxe6 {[%clk 0:01:22.7]} 31... Qxe6 {[%clk 0:01:52.7]} 32.
Qxe3 {[%clk 0:01:22.4]} 32... Rd8 {[%clk 0:01:38.1]} 33. Re1 {[%clk 0:01:19.4]}
33... Re8 {[%clk 0:01:27.7]} 34. a4 {[%clk 0:01:16.8]} 34... b6 {[%clk
0:01:22.9]} 35. Kg2 {[%clk 0:01:14.7]} 35... Kh7 {[%clk 0:01:20.9]} 36. a5
{[%clk 0:01:01.5]} 36... bxa5 {[%clk 0:01:17.3]} 37. Qxa7+ {[%clk 0:00:59.2]}
37... Re7 {[%clk 0:01:16.1]} 38. Qxa5 {[%clk 0:00:56.7]} 38... e3 {[%clk
0:00:51.9]} 39. Re2 {[%clk 0:00:54]} 39... Qe4+ {[%clk 0:00:49.6]} 40. Kg1
{[%clk 0:00:43.7]} 40... Qb1+ {[%clk 0:00:39.9]} 41. Kg2 {[%clk 0:00:37.5]}
41... Rf7 {[%clk 0:00:33.2]} 42. Qa2 {[%clk 0:00:28.9]} 42... Qf1+ {[%clk
0:00:31.5]} 43. Kh2 {[%clk 0:00:26.6]} 43... h4 {[%clk 0:00:18.5]} 44. b5 {[%clk
0:00:19.5]} 44... Qf4+ {[%clk 0:00:17.1]} 45. Kg1 {[%clk 0:00:19.1]} 45... Qxg5+
{[%clk 0:00:16.3]} 46. Rg2 {[%clk 0:00:17.5]} 46... Qf4 {[%clk 0:00:15.6]} 47.
Qxf7+ {[%clk 0:00:16]} 47... Qxf7 {[%clk 0:00:14.3]} 48. Re2 {[%clk 0:00:15.8]}
48... Qf3 {[%clk 0:00:13.1]} 49. Rg2 {[%clk 0:00:14.3]} 49... e2 {[%clk
0:00:12.2]} 50. Rxe2 {[%clk 0:00:13.9]} 50... Qxe2 {[%clk 0:00:11.3]} 51. b6
{[%clk 0:00:13.8]} 51... Qb5 {[%clk 0:00:10.5]} 52. b7 {[%clk 0:00:13.7]} 52...
Qxb7 {[%clk 0:00:09.9]} 53. Kf2 {[%clk 0:00:13.6]} 53... Qc6 {[%clk 0:00:09.6]}
54. c4 {[%clk 0:00:12.1]} 54... Qxc4 {[%clk 0:00:08.6]} 55. Ke3 {[%clk 0:00:12]}
55... Qc3+ {[%clk 0:00:08]} 56. Kf2 {[%clk 0:00:11.9]} 56... Qxh3 {[%clk
0:00:07.6]} 57. Kg1 {[%clk 0:00:11.5]} 57... Qg3+ {[%clk 0:00:07.5]} 58. Kh1
{[%clk 0:00:11.4]} 58... Qg4 {[%clk 0:00:06.8]} 59. Kh2 {[%clk 0:00:10.9]} 59...
Kh6 {[%clk 0:00:06.5]} 60. Kh1 {[%clk 0:00:10.8]} 60... Kg5 {[%clk 0:00:06.2]}
61. Kh2 {[%clk 0:00:10.7]} 61... Kf4 {[%clk 0:00:05.9]} 62. Kh1 {[%clk
0:00:10.6]} 62... Kf3 {[%clk 0:00:05.6]} 0-1

[Event "Live Chess"]
[Site "Chess.com"]
[Date "2024.06.01"]
[Round "-"]
[White "defenderalist"]
[Black "booktrunk"]
[Result "1-0"]
[WhiteElo "1522"]
[BlackElo "1382"]
[TimeControl "300"]
[EndTime "13:17:28 PDT"]
[Termination "defenderalist won by resignation"]

1. e4 {[%clk 0:04:59.2]} 1... b6 {[%clk 0:04:52]} 2. d4 {[%clk 0:04:58]} 2...
Bb7 {[%clk 0:04:51.9]} 3. Bd3 {[%clk 0:04:56.4]} 3... h6 {[%clk 0:04:49.9]} 4.
Nf3 {[%clk 0:04:54.7]} 4... e6 {[%clk 0:04:49.8]} 5. O-O {[%clk 0:04:53.1]} 5...
Nf6 {[%clk 0:04:47.6]} 6. e5 {[%clk 0:04:50.6]} 6... Nd5 {[%clk 0:04:45.4]} 7.
c4 {[%clk 0:04:49.3]} 7... Nb4 {[%clk 0:04:43.7]} 8. Be2 {[%clk 0:04:42.9]} 8...
f6 {[%clk 0:04:42.4]} 9. a3 {[%clk 0:04:41.3]} 9... N4a6 {[%clk 0:04:40.5]} 10.
b4 {[%clk 0:04:37.1]} 10... c6 {[%clk 0:04:39.2]} 11. Bb2 {[%clk 0:04:32]} 11...
fxe5 {[%clk 0:04:36.5]} 12. Nxe5 {[%clk 0:04:26.5]} 12... Nc7 {[%clk 0:04:34.3]}
13. Bh5+ {[%clk 0:04:23.5]} 13... Ke7 {[%clk 0:04:30.9]} 14. Ng6+ {[%clk
0:04:18.6]} 14... Kf6 {[%clk 0:04:27]} 15. Nxh8 {[%clk 0:04:17.1]} 1-0

[Event "Live Chess"]
[Site "Chess.com"]
[Date "2024.06.01"]
[Round "-"]
[White "MaximKovalenko83"]
[Black "stevochess11"]
[Result "1/2-1/2"]
[WhiteElo "2221"]
[BlackElo "1713"]
[TimeControl "300"]
[EndTime "13:17:36 PDT"]
[Termination "Game drawn by repetition"]

1. d4 {[%clk 0:04:58.6]} 1... Nf6 {[%clk 0:04:58.2]} 2. Nf3 {[%clk 0:04:56.7]}
2... g6 {[%clk 0:04:55.9]} 3. c4 {[%clk 0:04:36.6]} 3... Bg7 {[%clk 0:04:46.4]}
4. Nc3 {[%clk 0:04:36.5]} 4... d6 {[%clk 0:04:44.4]} 5. e4 {[%clk 0:04:36.4]}
5... O-O {[%clk 0:04:43.1]} 6. Be2 {[%clk 0:04:36.3]} 6... c5 {[%clk 0:04:41]}
7. O-O {[%clk 0:04:36.2]} 7... cxd4 {[%clk 0:04:36.9]} 8. Nxd4 {[%clk
0:04:33.6]} 8... Nc6 {[%clk 0:04:32.4]} 9. Be3 {[%clk 0:04:30.1]} 9... Bd7
{[%clk 0:04:27.2]} 10. h3 {[%clk 0:04:28.7]} 10... a6 {[%clk 0:04:25.1]} 11. b3
{[%clk 0:04:26.7]} 11... Rc8 {[%clk 0:04:23.5]} 12. Rc1 {[%clk 0:04:24.9]} 12...
Qa5 {[%clk 0:04:22.1]} 13. Nxc6 {[%clk 0:04:14.8]} 13... Bxc6 {[%clk 0:04:18.5]}
14. f3 {[%clk 0:04:12.6]} 14... Nd7 {[%clk 0:04:10.1]} 15. Bd4 {[%clk
0:04:09.5]} 15... Bxd4+ {[%clk 0:03:58.1]} 16. Qxd4 {[%clk 0:04:09.4]} 16... Qe5
{[%clk 0:03:53.9]} 17. Qd2 {[%clk 0:04:06.9]} 17... f5 {[%clk 0:03:44.9]} 18.
exf5 {[%clk 0:04:00.3]} 18... Rxf5 {[%clk 0:03:40]} 19. Bd3 {[%clk 0:03:58.5]}
19... Rf4 {[%clk 0:03:36.2]} 20. Rfe1 {[%clk 0:03:50.6]} 20... Qg5 {[%clk
0:03:35.1]} 21. Ne2 {[%clk 0:03:42.2]} 21... Rcf8 {[%clk 0:03:13.1]} 22. Nxf4
{[%clk 0:03:39.9]} 22... Rxf4 {[%clk 0:03:10.4]} 23. Be4 {[%clk 0:03:37.4]}
23... Ne5 {[%clk 0:02:55.4]} 24. Bxc6 {[%clk 0:03:31.7]} 24... bxc6 {[%clk
0:02:52]} 25. Rc3 {[%clk 0:03:28.5]} 25... Qg3 {[%clk 0:02:40.4]} 26. Qf2 {[%clk
0:03:20.9]} 26... Qg5 {[%clk 0:02:31.2]} 27. Re4 {[%clk 0:03:16.1]} 27... Rxe4
{[%clk 0:01:50.8]} 28. fxe4 {[%clk 0:03:16]} 28... Qh5 {[%clk 0:01:40.7]} 29.
Rc1 {[%clk 0:02:58.9]} 29... Nd3 {[%clk 0:01:38.5]} 30. Qf1 {[%clk 0:02:44.7]}
30... Nxc1 {[%clk 0:01:36.6]} 31. Qxc1 {[%clk 0:02:44.6]} 31... Qe2 {[%clk
0:01:33.6]} 32. Qb1 {[%clk 0:02:41]} 32... Qe3+ {[%clk 0:01:31.6]} 33. Kh1
{[%clk 0:02:39.6]} 33... Kf7 {[%clk 0:01:27.3]} 34. Qc2 {[%clk 0:02:33.7]} 34...
Ke6 {[%clk 0:01:17.3]} 35. b4 {[%clk 0:02:32.5]} 35... Ke5 {[%clk 0:01:14.4]}
36. b5 {[%clk 0:02:29.6]} 36... axb5 {[%clk 0:01:12.9]} 37. cxb5 {[%clk
0:02:29.2]} 37... cxb5 {[%clk 0:01:10]} 38. Qb2+ {[%clk 0:02:23.9]} 38... Kxe4
{[%clk 0:01:08]} 39. Qxb5 {[%clk 0:02:22.8]} 39... Qc1+ {[%clk 0:01:02.5]} 40.
Kh2 {[%clk 0:02:20]} 40... Qf4+ {[%clk 0:01:00.8]} 41. Kg1 {[%clk 0:02:16.6]}
41... d5 {[%clk 0:00:55.8]} 42. Qb4+ {[%clk 0:02:11.4]} 42... d4 {[%clk
0:00:48.3]} 43. Qxe7+ {[%clk 0:02:10]} 43... Kd3 {[%clk 0:00:44.3]} 44. Qxh7
{[%clk 0:02:06.8]} 44... Qe3+ {[%clk 0:00:41.5]} 45. Kh2 {[%clk 0:02:04.7]}
45... Qf4+ {[%clk 0:00:40.4]} 46. Kh1 {[%clk 0:02:03]} 46... Qf1+ {[%clk
0:00:39.5]} 47. Kh2 {[%clk 0:02:02.2]} 47... Qf4+ {[%clk 0:00:38.6]} 48. Kg1
{[%clk 0:02:01.4]} 48... Qe3+ {[%clk 0:00:37.5]} 49. Kf1 {[%clk 0:01:56.4]}
49... Qe2+ {[%clk 0:00:34.8]} 50. Kg1 {[%clk 0:01:55.3]} 50... Qe3+ {[%clk
0:00:34.1]} 1/2-1/2

[Event "Live Chess"]
[Site "Chess.com"]
[Date "2024.06.01"]
[Round "-"]
[White "ProfPoisson"]
[Black "koekoekoe"]
[Result "0-1"]
[WhiteElo "1293"]
[BlackElo "2047"]
[TimeControl "300"]
[EndTime "13:17:43 PDT"]
[Termination "koekoekoe won by resignation"]

1. e4 {[%clk 0:04:53.1]} 1... d5 {[%clk 0:04:59.9]} 2. exd5 {[%clk 0:04:50.5]}
2... Qxd5 {[%clk 0:04:59.8]} 3. Nc3 {[%clk 0:04:48.7]} 3... Qa5 {[%clk
0:04:59.2]} 4. b4 {[%clk 0:04:47.2]} 4... Qxb4 {[%clk 0:04:56]} 5. Nb5 {[%clk
0:04:45]} 5... Qa5 {[%clk 0:04:50.9]} 6. Bc4 {[%clk 0:04:43.3]} 6... c6 {[%clk
0:04:45.6]} 7. Bxf7+ {[%clk 0:04:39.4]} 7... Kxf7 {[%clk 0:04:44.5]} 8. Qh5+
{[%clk 0:04:36.9]} 8... g6 {[%clk 0:04:41.5]} 9. Nd6+ {[%clk 0:04:33.7]} 9...
exd6 {[%clk 0:04:40.2]} 10. Qxa5 {[%clk 0:04:32]} 10... b6 {[%clk 0:04:34.1]}
11. Qa4 {[%clk 0:04:12]} 11... Bg7 {[%clk 0:04:30.7]} 12. Rb1 {[%clk 0:04:06.4]}
12... Ne7 {[%clk 0:04:27.3]} 13. Nf3 {[%clk 0:04:02.4]} 13... Bg4 {[%clk
0:04:11]} 14. Qxg4 {[%clk 0:03:54.8]} 14... Nf5 {[%clk 0:04:08.9]} 15. O-O
{[%clk 0:03:40.5]} 15... Nd7 {[%clk 0:04:07.7]} 16. Bb2 {[%clk 0:03:32.2]} 16...
Bxb2 {[%clk 0:04:05.7]} 17. Rxb2 {[%clk 0:03:30]} 17... Nf6 {[%clk 0:04:05.6]}
18. Ng5+ {[%clk 0:03:26]} 18... Kg7 {[%clk 0:04:02.6]} 19. Ne6+ {[%clk
0:03:21.9]} 19... Kf7 {[%clk 0:04:01.7]} 20. Ng5+ {[%clk 0:03:14.3]} 20... Kg7
{[%clk 0:04:00.7]} 21. Re1 {[%clk 0:03:13.1]} 21... Nxg4 {[%clk 0:03:58.3]} 22.
Ne6+ {[%clk 0:03:03]} 22... Kf6 {[%clk 0:03:54]} 23. Nc7 {[%clk 0:02:58.3]}
23... Rac8 {[%clk 0:03:49.5]} 24. Re6+ {[%clk 0:02:55]} 24... Kf7 {[%clk
0:03:43.4]} 0-1

[Event "Live Chess"]
[Site "Chess.com"]
[Date "2024.06.01"]
[Round "-"]
[White "Queensandpawns"]
[Black "upoe610"]
[Result "0-1"]
[WhiteElo "2368"]
[BlackElo "2226"]
[TimeControl "300"]
[EndTime "13:17:47 PDT"]
[Termination "upoe610 won by resignation"]

1. e4 {[%clk 0:04:59.3]} 1... e5 {[%clk 0:04:56.9]} 2. d4 {[%clk 0:04:57.9]}
2... exd4 {[%clk 0:04:56]} 3. c3 {[%clk 0:04:57.8]} 3... Qe7 {[%clk 0:04:54.7]}
4. Bd3 {[%clk 0:04:53.8]} 4... d5 {[%clk 0:04:52.8]} 5. cxd4 {[%clk 0:04:49.6]}
5... dxe4 {[%clk 0:04:50.4]} 6. Bc2 {[%clk 0:04:49.5]} 6... Nf6 {[%clk
0:04:44.2]} 7. Nc3 {[%clk 0:04:48.2]} 7... Bf5 {[%clk 0:04:39.5]} 8. Bg5 {[%clk
0:04:47.5]} 8... h6 {[%clk 0:04:38.1]} 9. Bh4 {[%clk 0:04:46.6]} 9... Nc6 {[%clk
0:04:36.7]} 10. d5 {[%clk 0:04:45.2]} 10... O-O-O {[%clk 0:04:26.3]} 11. Qe2
{[%clk 0:04:40.9]} 11... Nd4 {[%clk 0:04:23.2]} 12. Qd2 {[%clk 0:04:33.3]} 12...
Nxc2+ {[%clk 0:04:20.7]} 13. Qxc2 {[%clk 0:04:33.2]} 13... g5 {[%clk 0:04:18.3]}
14. Bg3 {[%clk 0:04:31.3]} 14... Nxd5 {[%clk 0:04:16.9]} 15. Nxd5 {[%clk
0:04:27.7]} 15... Rxd5 {[%clk 0:04:16]} 16. Ne2 {[%clk 0:04:25.2]} 16... Qb4+
{[%clk 0:04:06.1]} 17. Kf1 {[%clk 0:04:18.9]} 17... Bd6 {[%clk 0:04:00.9]} 18.
a3 {[%clk 0:04:16.3]} 18... Qd2 {[%clk 0:03:49.1]} 19. Qa4 {[%clk 0:04:07.5]}
19... Bxg3 {[%clk 0:03:29.3]} 20. hxg3 {[%clk 0:04:07.4]} 20... e3 {[%clk
0:03:28.5]} 21. f3 {[%clk 0:03:38.8]} 21... Bd3 {[%clk 0:03:20.5]} 22. Re1
{[%clk 0:03:34.1]} 22... Bb5 {[%clk 0:03:11.3]} 23. Qxa7 {[%clk 0:03:24.2]}
23... Qxe2+ {[%clk 0:03:09.1]} 24. Kg1 {[%clk 0:03:24.1]} 24... Qxe1+ {[%clk
0:03:00.6]} 25. Kh2 {[%clk 0:03:24]} 25... Qxh1+ {[%clk 0:02:39.1]} 26. Kxh1
{[%clk 0:03:21.3]} 26... e2 {[%clk 0:02:38.7]} 27. Qa8+ {[%clk 0:03:15.1]} 27...
Kd7 {[%clk 0:02:36.1]} 28. Qxh8 {[%clk 0:03:15]} 28... e1=Q+ {[%clk 0:02:34.8]}
29. Kh2 {[%clk 0:03:14.9]} 29... Rd1 {[%clk 0:02:31.8]} 30. Kh3 {[%clk
0:03:12.2]} 30... Qh1+ {[%clk 0:02:15.9]} 31. Kg4 {[%clk 0:03:04.1]} 31... h5+
{[%clk 0:02:11]} 32. Kxg5 {[%clk 0:03:01.9]} 32... Rd5+ {[%clk 0:02:05]} 33. Kf6
{[%clk 0:02:58.8]} 33... Qe1 {[%clk 0:01:58.9]} 0-1

[Event "Live Chess"]
[Site "Chess.com"]
[Date "2024.06.01"]
[Round "-"]
[White "Enhard"]
[Black "Ferrarifan27"]
[Result "0-1"]
[WhiteElo "1435"]
[BlackElo "2068"]
[TimeControl "300"]
[EndTime "13:18:04 PDT"]
[Termination "Ferrarifan27 won by checkmate"]

1. d4 {[%clk 0:04:58]} 1... Nf6 {[%clk 0:04:53]} 2. Bg5 {[%clk 0:04:57]} 2... e6
{[%clk 0:04:49.9]} 3. e4 {[%clk 0:04:55.6]} 3... h6 {[%clk 0:04:47]} 4. Bxf6
{[%clk 0:04:54]} 4... Qxf6 {[%clk 0:04:46.9]} 5. e5 {[%clk 0:04:53]} 5... Qg6
{[%clk 0:04:46.1]} 6. Nf3 {[%clk 0:04:51.1]} 6... f6 {[%clk 0:04:38.4]} 7. Bd3
{[%clk 0:04:47.8]} 7... Qf7 {[%clk 0:04:37.5]} 8. O-O {[%clk 0:04:41.3]} 8...
Nc6 {[%clk 0:04:34]} 9. c3 {[%clk 0:04:40]} 9... d6 {[%clk 0:04:32.8]} 10. Bb5
{[%clk 0:04:35.8]} 10... Bd7 {[%clk 0:04:30.8]} 11. Bxc6 {[%clk 0:04:34.6]}
11... Bxc6 {[%clk 0:04:29.6]} 12. Nbd2 {[%clk 0:04:33.6]} 12... O-O-O {[%clk
0:04:27.1]} 13. Qb3 {[%clk 0:04:13]} 13... dxe5 {[%clk 0:04:14.3]} 14. dxe5
{[%clk 0:04:10.6]} 14... Bc5 {[%clk 0:04:12.7]} 15. Rfd1 {[%clk 0:04:07.9]}
15... f5 {[%clk 0:04:03.9]} 16. a4 {[%clk 0:04:02.5]} 16... g5 {[%clk
0:04:01.8]} 17. h3 {[%clk 0:04:00.8]} 17... g4 {[%clk 0:03:59.7]} 18. hxg4
{[%clk 0:03:59.2]} 18... fxg4 {[%clk 0:03:58.6]} 19. a5 {[%clk 0:03:50.4]} 19...
gxf3 {[%clk 0:03:55.8]} 20. Nc4 {[%clk 0:03:29.8]} 20... Qg7 {[%clk 0:03:44.1]}
21. g3 {[%clk 0:03:26.8]} 21... Qxg3+ {[%clk 0:03:42.1]} 22. Kf1 {[%clk
0:03:24.7]} 22... Qxf2# {[%clk 0:03:40.8]} 0-1

[Event "Live Chess"]
[Site "Chess.com"]
[Date "2024.06.01"]
[Round "-"]
[White "WilliamofOrange16th"]
[Black "Delacorta"]
[Result "1-0"]
[WhiteElo "1983"]
[BlackElo "1558"]
[TimeControl "300"]
[EndTime "13:18:08 PDT"]
[Termination "WilliamofOrange16th won by resignation"]

1. e4 {[%clk 0:04:57.6]} 1... e6 {[%clk 0:04:58.5]} 2. f4 {[%clk 0:04:55.6]}
2... d5 {[%clk 0:04:56.8]} 3. e5 {[%clk 0:04:55.2]} 3... c5 {[%clk 0:04:55.3]}
4. c3 {[%clk 0:04:54.7]} 4... Nc6 {[%clk 0:04:54.5]} 5. Nf3 {[%clk 0:04:54]}
5... Qb6 {[%clk 0:04:53.4]} 6. Na3 {[%clk 0:04:51.5]} 6... Nh6 {[%clk
0:04:41.7]} 7. Nc2 {[%clk 0:04:50.3]} 7... Nf5 {[%clk 0:04:40.3]} 8. g4 {[%clk
0:04:43.6]} 8... Nfe7 {[%clk 0:04:39.1]} 9. d4 {[%clk 0:04:42.1]} 9... Ng8
{[%clk 0:04:33.3]} 10. Bd3 {[%clk 0:04:39]} 10... c4 {[%clk 0:04:31.8]} 11. Be2
{[%clk 0:04:36.3]} 11... g6 {[%clk 0:04:30]} 12. O-O {[%clk 0:04:34.3]} 12...
Bg7 {[%clk 0:04:24.7]} 13. Ne3 {[%clk 0:04:33.2]} 13... Nge7 {[%clk 0:04:22]}
14. b3 {[%clk 0:04:28.8]} 14... Na5 {[%clk 0:03:59.1]} 15. b4 {[%clk 0:04:26.1]}
15... Nac6 {[%clk 0:03:57.6]} 16. a4 {[%clk 0:04:26]} 16... Qc7 {[%clk 0:03:51]}
17. Bd2 {[%clk 0:04:17.6]} 17... h5 {[%clk 0:03:49]} 18. Ng5 {[%clk 0:04:10.1]}
18... f6 {[%clk 0:03:25.2]} 19. exf6 {[%clk 0:04:08]} 19... Bxf6 {[%clk
0:03:22.7]} 20. gxh5 {[%clk 0:04:07]} 20... Nf5 {[%clk 0:03:04.3]} 21. hxg6
{[%clk 0:03:53]} 21... Bxg5 {[%clk 0:02:49.7]} 22. Nxf5 {[%clk 0:03:47.5]} 22...
exf5 {[%clk 0:02:38.3]} 23. Bh5 {[%clk 0:03:40.3]} 23... Qg7 {[%clk 0:01:37.8]}
24. fxg5 {[%clk 0:03:29.7]} 24... Kf8 {[%clk 0:01:37]} 25. Bf4 {[%clk
0:03:27.1]} 25... Ne7 {[%clk 0:01:30.7]} 26. Be5 {[%clk 0:03:24.7]} 1-0